[Event "CCT Chesscom Classic-D2 2024"]
[Site "Online"]
[Date "2024.05.11"]
[Round "2"]
[White "LevonAronian"]
[Black "Kollars, Dmitrij"]
[Result "1-0"]
[ECO "C54"]
[WhiteElo "2740"]
[BlackElo "2648"]
[Annotator "TA"]
[PlyCount "91"]
[EventDate "2024.05.08"]
[EventType "k.o."]
[EventCountry "NET"]
[SourceTitle "playchess.com"]
[Source "ChessBase"]
[SourceQuality "1"]
[TimeControl "600+2"]

{[%evp 28,91,-21,-46,14,25,84,76,83,100,67,45,39,0,101,97,102,-25,-31,-76,-76,-85,-86,-89,-75,-121,-106,-162,-78,-177,-131,-128,-8,-8,-8,0,0,0,0,0,8,7,224,205,302,350,757,858,858,742,550,273,29984,29985,29985,29986,29991,0,0,0,29991,29992,29995,29996,29997,29995]} 1. e4 {[%emt 0:00:45]} e5 {[%emt 0:00:11]} 2. Nf3 {[%emt 0:00:03]} Nc6 {[%emt 0:00:01]} 3. Bc4 {[%emt 0:00:01]} Nf6 {[%emt 0:00:03]} 4. d3 {[%emt 0:00:01]} Bc5 {[%emt 0:00:03]} 5. h3 {[%emt 0:00:02]} d6 {[%emt 0:00:08]} 6. c3 {[%emt 0:00:07]} a6 {[%emt 0:00:07]} 7. Bb3 {[%emt 0:00:03] C54: Giuoco Piano: 4 c3 Nf6, main lines with 5 d4 and 5 d3.} O-O {[%emt 0:00:07]} 8. Bg5 {[%emt 0:00:03]} Ba7 {[%emt 0:00:22]} 9. Nbd2 {[%emt 0:00:05]} Be6 {[%emt 0:00:27]} 10. Bc2 $5 {[%emt 0:00:08][%mdl 4] An interesting side line.} h6 {[%emt 0:00:21]} 11. Bh4 {[%emt 0:00:01]} g5 $146 {[%emt 0:00:40]} ({Predecessor:} 11... Qe7 12. Nh2 g5 13. Bg3 Rfd8 14. Qe2 b5 15. Ndf1 Bb6 16. Ne3 Qd7 17. h4 g4 18. h5 Nxh5 19. Nhxg4 Nxg3 20. Nf6+ Kg7 21. Qf3 Qc8 22. Qxg3+ Kxf6 23. Qh4+ {1-0 Ahmadinia,E (2398)-Meyer Dunker,P (1965) Berlin Lichtenberger op 16th 2017 (2)}) 12. Bg3 {[%emt 0:00:55]} Nh5 {[%emt 0:00:11]} 13. Qe2 {[%emt 0:00:02]} Qf6 {[%emt 0:00:13]} 14. O-O-O {[%emt 0:00:18]} b5 {[%emt 0:00:38]} (14... Bxa2 $6 15. b3 $14) 15. Nh2 {[%emt 0:01:17]} Nf4 {[%emt 0:00:52]} (15... Qg6 $15) 16. Bxf4 $11 {[%emt 0:00:02]} Qxf4 {[%emt 0:00:09]} (16... gxf4 $11 17. Rdg1 Ne7) 17. Rdf1 $16 {[%emt 0:01:31]} Qf6 {[%emt 0:00:27]} 18. h4 {[%emt 0:00:26]} gxh4 {[%emt 0:00:47]} 19. f4 {[%emt 0:00:10]} exf4 {[%emt 0:01:15]} 20. d4 {[%emt 0:00:03]} Nxd4 {[%emt 0:00:06]} (20... Ne7 $1 $11 {keeps the balance.}) 21. cxd4 $16 {[%emt 0:00:03]} Bxd4 {[%emt 0:00:00]} 22. Nhf3 {[%emt 0:00:51]} (22. Ng4 $16 Qg5 (22... Bxb2+ 23. Kb1 $16) 23. Qd3 Bxb2+ (23... Qxg4 $2 24. Qxd4 a5 25. Qf2 $18) 24. Kxb2 Qxg4 25. Rf3) 22... Bxb2+ $11 {[%emt 0:00:03]} 23. Kd1 {[%emt 0:00:01]} h3 {[%emt 0:00:23]} (23... Bxa2 24. Nxh4 Be6 25. Nf5 Bxf5 26. Rxf4 $16) 24. gxh3 {[%emt 0:00:48]} Be5 {[%emt 0:00:07]} (24... Bxa2 $2 25. e5 Qe7 (25... dxe5 $2 26. Rhg1+ $18) (25... Bxe5 $2 26. Rhg1+ Kh8 27. Qd3 $18) 26. Qd3 $18) 25. Rhg1+ {[%emt 0:00:19]} Kh8 {[%emt 0:00:03]} 26. Nxe5 {[%emt 0:00:27]} (26. Bb3 $142) 26... dxe5 $17 {[%emt 0:00:03]} 27. Qh5 {[%emt 0:00:02]} (27. Bb3 $17) 27... Rae8 {[%emt 0:00:52]} (27... Bxa2 $19 {Strongly threatening ...a5.} 28. Kc1 Rae8) 28. Nf3 {[%emt 0:01:34]} (28. Bb3 $17 {is a better defense.}) 28... Bc4 {[%emt 0:00:02]} (28... Bxa2 $19 29. Rf2 Rg8 30. Rxg8+ Kxg8) 29. Rf2 $17 {[%emt 0:00:03]} Rg8 {[%emt 0:00:33]} ({Better is} 29... Bxa2 $17 {next ...Rg8 is good for Black.} 30. Bd3 Bb3+ 31. Kd2 Rg8) 30. Rxg8+ $11 {[%emt 0:00:12]} Kxg8 {[%emt 0:00:01]} 31. Bb3 {[%emt 0:00:16]} Bxb3+ {[%emt 0:00:30]} 32. axb3 {[%emt 0:00:01]} Qe6 {[%emt 0:00:04]} 33. Kc2 {[%emt 0:00:06]} Kf8 {[%emt 0:00:09]} 34. Rd2 {[%emt 0:00:04]} c6 $2 {[%emt 0:00:31]} (34... a5 $11) 35. Nh4 $1 $18 {[%emt 0:00:02]} a5 {[%emt 0:00:01]} (35... c5 {keeps fighting.} 36. Nf5 Qg6) 36. Nf5 $18 {[%emt 0:00:01]} a4 $2 {[%emt 0:00:02]} (36... Qg6 37. Qf3 (37. Qxh6+ Qxh6 38. Nxh6 Kg7 $14) 37... Qf6) 37. Rd6 $1 $18 {[%emt 0:00:04]} (37. Qxh6+ Qxh6 38. Nxh6 a3 $11) 37... Qxb3+ {[%emt 0:00:01]} 38. Kd2 {[%emt 0:00:03]} Qb4+ {[%emt 0:00:20]} 39. Ke2 {[%emt 0:00:03]} (39. Kd1 $142 Qb1+ (39... Qxe4 40. Qxh6+ Kg8 41. Qg7#) 40. Ke2 f3+ (40... Qxe4+ $2 41. Kf2 $18) 41. Qxf3) 39... Qxe4+ $2 {[%emt 0:00:01]} (39... f3+ $18 40. Qxf3 (40. Kxf3 Qc3+ 41. Kg4 Qc1 $11) 40... Qc4+ 41. Kd1 Qb3+ 42. Qxb3 axb3 43. Rxc6 (43. Rxh6 Kg8 $18) 43... Rd8+ 44. Kc1 h5) 40. Kf2 {[%emt 0:00:01]} Qc2+ {[%emt 0:00:15]} 41. Kg1 {[%emt 0:00:02]} Qc1+ {[%emt 0:00:01] [#]} 42. Kh2 $2 {[%emt 0:00:02]} (42. Rd1 $1 {mates} Re6 43. Rxc1 Rg6+ 44. Kh1 Rf6 45. Rd1 (45. Nxh6 f3) 45... Kg8 46. Nxh6+ Kf8 47. Qxe5 (47. Rd8+ Ke7 48. Rd2 Rd6 49. Qxe5+ Kd8 50. Qxd6+ Kc8 51. Qe7 f3 52. Rd8#) 47... Rd6 48. Rxd6 (48. Qxd6+ Kg7 49. Nf5+ Kg8 50. Rg1+ Kh8 51. Qh6#) 48... f6 49. Qxf6+ Ke8 50. Qf7#) 42... Qc2+ $2 {[%emt 0:00:02][%mdl 8192]} (42... f3 $11 43. Rxh6 Qd2+ 44. Kg3 Qe1+ 45. Kg4 Qe4+ 46. Kg3 Qf4+ 47. Kf2 Qd2+ 48. Kxf3 Qd1+ 49. Kf2 Qxh5 50. Rxh5 Kg8 51. Rg5+ Kf8) 43. Kg1 {[%emt 0:00:01]} Qc1+ {[%emt 0:00:01] [#]} 44. Rd1 $1 {[%emt 0:00:01]} Qc5+ {[%emt 0:00:01]} 45. Kh1 {[%emt 0:00:02]} f6 {[%emt 0:00:14]} 46. Qg6 {[%emt 0:00:05]} 1-0

[Event "CCT Chesscom Classic-D2 2024"]
[Site "Online"]
[Date "2024.05.11"]
[Round "2"]
[White "Vachier-Lagrave, Maxime"]
[Black "Martinez Alcantara, Jose Eduardo"]
[Result "1-0"]
[ECO "C88"]
[WhiteElo "2732"]
[BlackElo "2612"]
[Annotator "TA"]
[PlyCount "163"]
[EventDate "2024.05.08"]
[EventType "k.o."]
[EventCountry "NET"]
[SourceTitle "playchess.com"]
[Source "ChessBase"]
[SourceQuality "1"]
[TimeControl "600+2"]

{[%evp 19,163,10,6,8,0,6,0,0,2,4,2,9,8,14,43,42,39,40,64,20,23,25,43,66,61,61,57,47,70,62,78,0,0,0,0,0,7,0,0,0,6,6,16,12,14,20,61,30,20,9,12,12,29,43,97,100,100,32,162,148,219,139,147,139,147,107,107,122,122,92,1061,974,779,188,1412,667,1151,1020,939,91,1015,1011,939,833,758,541,482,664,577,0,91,91,91,91,91,91,513,300,267,91,91,91,91,91,91,91,91,0,91,91,91,91,91,91,91,91,91,91,91,91,91,91,1156,916,1608,1495,1415,1045,1783,679,4914,1945,1945,295,10281,225,1531,225,5531,5979,4606,3416,1240,854,29978,29978]} 1. e4 {[%emt 0:00:06]} e5 {[%emt 0:00:07]} 2. Nf3 {[%emt 0:00:02]} Nc6 {[%emt 0:00:00]} 3. Bb5 {[%emt 0:00:00]} a6 {[%emt 0:00:01]} 4. Ba4 {[%emt 0:00:01]} Nf6 {[%emt 0:00:00]} 5. O-O {[%emt 0:00:01]} Be7 {[%emt 0:00:01]} 6. Re1 {[%emt 0:00:01]} b5 {[%emt 0:00:00]} 7. Bb3 {[%emt 0:00:01]} O-O {[%emt 0:00:01]} 8. a4 {[%emt 0:00:08]} b4 {[%emt 0:00:01]} 9. d4 {[%emt 0:00:09]} d6 {[%emt 0:00:02]} 10. dxe5 {[%emt 0:00:01]} Nxe5 {[%emt 0:00:00]} 11. Bf4 {[%emt 0:00:21]} Bb7 {[%emt 0:01:10]} 12. Nbd2 {[%emt 0:00:15]} Ng6 {[%emt 0:00:06]} 13. Bg3 {[%emt 0:00:07] The position is equal.} Nd7 {[%emt 0:01:30]} 14. Nc4 {[%emt 0:00:21]} Nc5 {[%emt 0:00:29]} 15. e5 {[%emt 0:00:02]} Nxb3 {[%emt 0:01:31]} 16. cxb3 {[%emt 0:00:00]} dxe5 {[%emt 0:00:00]} 17. Nfxe5 {[%emt 0:00:11]} Nxe5 {[%emt 0:00:31]} 18. Bxe5 {[%emt 0:00:04]} Bf6 {[%emt 0:00:49]} 19. Qg4 {[%emt 0:01:47]} Bd5 {[%emt 0:01:48]} 20. Rad1 {[%emt 0:00:17]} (20. Qd4 {simplifies} Be6 21. Bxf6 Qxf6 22. Qxf6 gxf6 23. Red1) 20... c6 {[%emt 0:00:01]} 21. Bd6 {[%emt 0:01:14]} Re8 {[%emt 0:00:05] ...Rxe1+ would now be deadly.} 22. Bxb4 {[%emt 0:00:02] White is more active.} Rxe1+ {[%emt 0:00:23]} 23. Rxe1 {[%emt 0:00:00]} h5 {[%emt 0:00:58]} 24. Qxh5 {[%emt 0:00:06]} Qb8 {[%emt 0:00:03]} 25. Bc5 {[%emt 0:01:39]} (25. Ba5 $1 $16 {aiming for Nb6.} Bxc4 (25... Qxb3 $2 26. Nb6 $18) 26. bxc4) 25... Qxb3 $11 {[%emt 0:00:01]} 26. Nb6 {[%emt 0:00:01]} Rd8 {[%emt 0:00:18]} 27. Qe2 {[%emt 0:01:04]} Qxb2 {[%emt 0:00:18]} 28. Qxb2 {[%emt 0:00:01]} Bxb2 {[%emt 0:00:00] This pair of bishops is nice.} 29. Rd1 {[%emt 0:00:01]} Bf6 {[%emt 0:00:13]} 30. Nxd5 {[%emt 0:00:11]} cxd5 {[%emt 0:00:01][%mdl 4096] Endgame. KRB-KRB} 31. Kf1 {[%emt 0:00:06]} Be5 {[%emt 0:00:12]} 32. Bb6 {[%emt 0:00:17]} Rd7 {[%emt 0:00:07][%cal Of7f6]} 33. h3 {[%emt 0:00:04]} f6 {[%emt 0:00:01]} 34. a5 {[%emt 0:00:02]} Kf7 {[%emt 0:00:01]} 35. Ke2 {[%emt 0:00:00]} Ke6 {[%emt 0:00:01]} 36. Rc1 {[%emt 0:00:01]} d4 {[%emt 0:00:17]} (36... Rb7 $14) 37. Kd3 $16 {[%emt 0:00:01]} Rd5 {[%emt 0:00:00]} 38. g3 {[%emt 0:00:32]} (38. Rc6+ $1 $16 Ke7 39. g3) 38... g5 {[%emt 0:00:02]} (38... Rb5 $14) 39. Rc6+ $18 {[%emt 0:00:01]} Kd7 {[%emt 0:00:02]} 40. Rc5 {[%emt 0:00:02]} Ke6 {[%emt 0:00:05]} 41. Rxd5 $1 {[%emt 0:00:25]} Kxd5 $16 {[%emt 0:00:00] KB-KB} 42. g4 {[%emt 0:00:00]} Ke6 {[%emt 0:00:05]} 43. Ke4 {[%emt 0:00:07]} d3 {[%emt 0:00:02]} 44. Kxd3 {[%emt 0:00:00]} f5 $2 {[%emt 0:00:02][%mdl 8192]} (44... Kd5 $16) 45. Kc4 $18 {[%emt 0:00:06]} Bd6 {[%emt 0:00:03]} 46. Be3 $2 {[%emt 0:00:05]} (46. Bd8 fxg4 47. hxg4) 46... fxg4 $2 {[%emt 0:00:02]} (46... Be7 47. Bd4 Bd8) 47. hxg4 {[%emt 0:00:01]} (47. Bxg5 $2 {too greedy.} gxh3 48. Kd3 h2 $19) 47... Be7 {[%emt 0:00:01]} 48. Bd4 {[%emt 0:00:11]} Bd8 {[%emt 0:00:01] [#]} 49. Bc3 $2 {[%emt 0:00:01]} (49. Bb6 $1 $18 {[%cal Rb6d8]} Be7 50. Be3) 49... Be7 {[%emt 0:00:00][%mdl 8192]} (49... Kd6 $16 50. f3 Kc6) 50. f3 {[%emt 0:00:02]} Bd6 {[%emt 0:00:02]} 51. Bb4 {[%emt 0:00:05]} Bc7 {[%emt 0:00:03]} 52. Bd2 {[%emt 0:00:01]} Bd8 {[%emt 0:00:00]} 53. Kc5 {[%emt 0:00:01]} Ke5 {[%emt 0:00:04]} 54. Kc4 $2 {[%emt 0:00:10]} (54. Bc1 $18 Bxa5 55. Bxg5) 54... Kd6 {[%emt 0:00:03]} (54... Ke6 $1 $11 {remains equal.}) 55. Kd4 {[%emt 0:00:04]} Bf6+ {[%emt 0:00:02]} 56. Ke4 {[%emt 0:00:01]} Ke6 {[%emt 0:00:00]} 57. Bb4 {[%emt 0:00:08]} Bg7 $2 {[%emt 0:00:05][%mdl 8192] [#]} (57... Bd8 $16 {is tougher.} 58. Bc3 Be7) 58. Bc5 $1 {[%emt 0:00:05]} Bf6 {[%emt 0:00:01]} 59. Bd4 $2 {[%emt 0:00:05]} (59. Bb6 $18 {and the rest is easy.}) 59... Bd8 $16 {[%emt 0:00:01]} 60. Bc3 {[%emt 0:00:01]} Be7 {[%emt 0:00:01]} 61. Kd4 {[%emt 0:00:03]} Bd6 {[%emt 0:00:07]} 62. Kc4 {[%emt 0:00:01] Hoping for Bb4.} Be7 {[%emt 0:00:01]} 63. Bd2 {[%emt 0:00:04]} (63. Be1 $16) 63... Ke5 {[%emt 0:00:02]} (63... Bd8 $1 $11) 64. Be3 {[%emt 0:00:09]} Ke6 {[%emt 0:00:01]} 65. Bb6 {[%emt 0:00:07] Black must now prevent Be3.} Ke5 {[%emt 0:00:01]} 66. Bc7+ {[%emt 0:00:01]} Ke6 {[%emt 0:00:02]} 67. Kd4 {[%emt 0:00:00]} Kd7 {[%emt 0:00:02]} 68. Bb6 {[%emt 0:00:08]} Ke6 {[%emt 0:00:00]} 69. Bc5 {[%emt 0:00:01] Bxe7 is the strong threat.} Bf6+ {[%emt 0:00:06]} 70. Kc4 {[%emt 0:00:01]} Be5 $2 {[%emt 0:00:03][%mdl 8192]} (70... Bd8 $16) 71. Be3 $18 {[%emt 0:00:02]} Bf6 {[%emt 0:00:01]} 72. Kc5 {[%emt 0:00:00]} Bd8 {[%emt 0:00:01]} 73. Kc6 {[%emt 0:00:03]} Bxa5 {[%emt 0:00:04]} 74. Bxg5 {[%emt 0:00:01]} Bc3 {[%emt 0:00:01]} 75. Kc5 {[%emt 0:00:10]} (75. f4 $142 Bb2 76. f5+ Kf7 77. Kb6) 75... a5 {[%emt 0:00:02][%cal Ba6a5,Ba5a4][%mdl 32]} 76. Kc4 $2 {[%emt 0:00:01]} (76. Bf4 {And now Kb5 would win.} Be1 77. Kc4) 76... Be5 $2 {[%emt 0:00:02]} (76... Be1 77. Bf4 Bh4) 77. Bd2 $2 {[%emt 0:00:05]} (77. Kb5 Bc3 78. Bd8) 77... Bc7 $2 {[%emt 0:00:02]} (77... a4 78. Kb4 Kd5 79. Kxa4 Bd6) 78. f4 $2 {[%emt 0:00:05]} (78. Kb5 Kd5 79. Bxa5) 78... Bd8 $2 {[%emt 0:00:03]} (78... a4 79. Kb4 Kd5 80. Kxa4 Ke4) 79. Bc3 {[%emt 0:00:02]} a4 {[%emt 0:00:02]} 80. f5+ {[%emt 0:00:01]} Kd6 {[%emt 0:00:02]} 81. Kd4 {[%emt 0:00:06]} a3 {[%emt 0:00:01]} 82. Bb4+ {[%emt 0:00:01] Weighted Error Value: White=0.50/Black=0.33.  Loses game:     	---       	Black=3      Missed win:     	White=2     	---        Mistake:       	White=3     	Black=5      Inaccurate:     	White=2     	Black=2      OK:         	White=22    	Black=19     Best:        	White=3     	Black=9      Strong:       	White=1     	---} 1-0

[Event "CCT Chesscom Classic-D2 2024"]
[Site "Online"]
[Date "2024.05.11"]
[Round "2"]
[White "Dubov, Daniil"]
[Black "Hakobyan, Aram"]
[Result "1/2-1/2"]
[ECO "C83"]
[WhiteElo "2707"]
[BlackElo "2617"]
[Annotator "TA"]
[PlyCount "75"]
[EventDate "2024.05.08"]
[EventType "k.o."]
[EventCountry "NET"]
[SourceTitle "playchess.com"]
[Source "ChessBase"]
[SourceQuality "1"]
[TimeControl "600+2"]

{[%evp 23,75,17,5,14,43,24,25,-5,12,16,9,0,15,-6,-9,-4,-4,-4,0,-11,0,-26,-8,-14,0,0,0,0,0,0,0,0,0,-19,-12,-19,-13,-50,-7,-7,-7,-12,-15,-16,-14,-9,0,0,0,0,0,0,0,0]} 1. e4 {[%emt 0:00:07]} e5 {[%emt 0:00:06]} 2. Nf3 {[%emt 0:00:03]} Nc6 {[%emt 0:00:03]} 3. Bb5 {[%emt 0:00:02]} a6 {[%emt 0:00:07]} 4. Ba4 {[%emt 0:00:01]} Nf6 {[%emt 0:00:01]} 5. O-O {[%emt 0:00:02]} Nxe4 {[%emt 0:00:07]} 6. d4 {[%emt 0:00:14]} b5 {[%emt 0:00:02]} 7. Bb3 {[%emt 0:00:01]} d5 {[%emt 0:00:01][%cal Bd7d5,Bd5e4,Be4f3,Bf3g2][%mdl 32]} 8. dxe5 {[%emt 0:00:02]} Be6 {[%emt 0:00:03]} 9. Be3 {[%emt 0:00:03]} Be7 {[%emt 0:00:37]} 10. Nbd2 {[%emt 0:00:02]} O-O {[%emt 0:00:06]} 11. c3 {[%emt 0:00:44]} Bg4 {[%emt 0:00:03]} 12. Nxe4 {[%emt 0:00:44]} dxe4 {[%emt 0:00:00]} 13. Qd5 {[%emt 0:00:02]} exf3 {[%emt 0:00:01]} 14. Qxc6 {[%emt 0:00:02]} fxg2 {[%emt 0:00:01]} 15. Rfe1 {[%emt 0:01:03] White has an edge.} (15. Qxg2 $5 Qc8 16. Bh6 $14) 15... Qd7 {[%emt 0:01:05]} 16. Qxd7 {[%emt 0:00:06]} Bxd7 {[%emt 0:00:00]} 17. Rad1 {[%emt 0:00:30]} (17. Kxg2 {simplifies} Rab8 18. Rad1 Rbd8 19. Bd5) 17... Bc6 {[%emt 0:01:42]} 18. Bd5 {[%emt 0:00:04]} Bxd5 {[%emt 0:00:03]} 19. Rxd5 {[%emt 0:00:01]} Rfd8 {[%emt 0:00:08] Against Rd7} 20. Rxd8+ {[%emt 0:00:05]} (20. c4 {with more complications.} f6 21. Rxd8+ Rxd8 22. cxb5 axb5 23. Rc1) 20... Rxd8 {[%emt 0:00:03]} 21. Kxg2 $11 {[%emt 0:00:00][%mdl 4096] Endgame. KRB-KRB} Kf8 {[%emt 0:00:38]} 22. Kg3 {[%emt 0:00:10]} a5 {[%emt 0:00:38]} 23. Kf3 {[%emt 0:00:06]} a4 {[%emt 0:00:49]} 24. Ke4 {[%emt 0:00:04]} g6 {[%emt 0:00:10]} 25. b3 {[%emt 0:01:21]} f5+ {[%emt 0:00:42]} 26. exf6 {[%emt 0:00:05]} Bxf6 {[%emt 0:00:01]} 27. bxa4 {[%emt 0:00:02]} bxa4 {[%emt 0:00:05]} 28. Rb1 {[%emt 0:00:11]} Bxc3 {[%emt 0:00:12]} 29. Rb7 {[%emt 0:00:07]} Re8+ {[%emt 0:00:26]} 30. Kd5 {[%emt 0:00:52]} Ba5 {[%emt 0:00:41]} 31. Ra7 {[%emt 0:00:53] The position is equal.} Bb6 {[%emt 0:00:03]} 32. Bh6+ {[%emt 0:00:06]} Ke7 {[%emt 0:00:24]} 33. Rxa4 {[%emt 0:00:05]} Kd7 {[%emt 0:00:01]} 34. Rf4 {[%emt 0:00:26]} Re2 {[%emt 0:00:15][%csl LRa2,LRf2]} 35. Rf7+ {[%emt 0:00:11]} Kc8 {[%emt 0:00:01]} 36. a4 {[%emt 0:00:31]} Rxf2 {[%emt 0:00:45]} 37. Rxf2 {[%emt 0:00:08]} Bxf2 {[%emt 0:00:00]} 38. Kc6 {[%emt 0:00:02] An interesting draw.   Weighted Error Value: White=0.09 (flawless) /Black=0.09 (flawless) .  Inaccurate:     	White=3     	Black=2      OK:         	White=12    	Black=8      Best:        	White=2     	---} 1/2-1/2